fUSD/lending_fUSD_20240612
["ID","MTS","AMOUNT","RATE_DAILY","PERIOD"]
[329220128,1718187037503,-523.32,0.00019251,2]
[329220129,1718187037515,-392.50090934,0.00019251,2]
[329220130,1718187037874,-1565.07,0.00019251,2]
[329220131,1718187037897,-500.0,0.00019251,2]
[329220132,1718187037918,-1272.8,0.00019251,2]
[329220133,1718187037930,-500.0,0.00019251,2]
[329220134,1718187037940,-500.0,0.00019251,2]
[329220135,1718187037951,-1493.24,0.00019251,2]
[329220136,1718187037962,-95987.5516475,0.00019252,2]
[329220137,1718187037980,-5854.9058077,0.00019252,2]
[329220156,1718187041250,-500.0,0.0001925,2]
[329220157,1718187041262,-500.0,0.0001925,2]
[329220158,1718187041273,-150.61907446,0.00019251,2]
[329220159,1718187041285,-27718.6339448,0.00019252,2]
[329220160,1718187041305,-209.52678916,0.00019313,2]
[329220161,1718187041319,-1053.27219709,0.00019313,2]
[329220162,1718187041330,-5007.06797197,0.00019313,2]
[329220163,1718187041341,-205.70870175,0.00019313,2]
[329220164,1718187041352,-500.0,0.00019315,2]
[329220165,1718187041363,-500.0,0.00019315,2]
[329220166,1718187041374,-250.0,0.00019315,2]
[329220167,1718187041385,-500.0,0.00019315,2]
[329220168,1718187041396,-1123.87,0.00019315,2]
[329220169,1718187041406,-164.87010775,0.00019315,2]
[329220170,1718187041417,-500.0,0.00019315,2]
[329220171,1718187041428,-500.0,0.00019315,2]
[329220172,1718187041438,-500.0,0.00019315,2]
[329220173,1718187041450,-500.0,0.00019315,2]
[329220174,1718187041461,-500.0,0.00019315,2]
[329220175,1718187041472,-500.0,0.00019315,2]
[329220176,1718187041483,-500.0,0.00019315,2]
[329220177,1718187041493,-615.69,0.00019315,2]
[329220178,1718187041505,-500.0,0.00019315,2]
[329220179,1718187041516,-500.0,0.00019315,2]
[329220180,1718187041528,-242.36702202,0.00019315,2]
[329220181,1718187041542,-196.424191,0.00019315,2]
[329220182,1718187041562,-303.575809,0.00019315,2]
[329220183,1718187041588,-500.0,0.00019315,2]
[329220184,1718187041599,-325.53249027,0.00019315,2]
[329220185,1718187041630,-500.0,0.0001925,2]
[329220186,1718187041641,-174.46750973,0.00019315,2]
[329220187,1718187041653,-564.05,0.00019315,2]
[329220188,1718187041664,-500.0,0.00019315,2]
[329220189,1718187041678,-500.0,0.00019315,2]
[329220190,1718187041690,-500.0,0.00019315,2]
[329220191,1718187041701,-500.0,0.00019315,2]
[329220192,1718187041712,-161.87250567,0.00019315,2]
[329220193,1718187041727,-338.12749433,0.00019315,2]
[329220194,1718187041738,-639.73388034,0.00019315,2]
[329220195,1718187041749,-398.03540324,0.00019315,2]
[329220196,1718187041763,-500.0,0.00019315,2]
[329220197,1718187041773,-500.0,0.00019315,2]
[329220198,1718187041784,-500.0,0.00019315,2]
[329220199,1718187041795,-312.75569955,0.00019315,2]
[329220200,1718187041806,-500.0,0.00019315,2]
[329220201,1718187041817,-500.0,0.00019315,2]
[329220202,1718187041827,-500.0,0.00019315,2]
[329220203,1718187041838,-3607.477,0.00019325,2]
[329220204,1718187041849,-500.0,0.00019351,2]
[329220205,1718187041860,-155.06417439,0.00019351,2]
[329220206,1718187041870,-500.0,0.00019351,2]
[329220207,1718187041881,-500.0,0.00019351,2]
[329220208,1718187041892,-401.56911947,0.00019351,2]
[329220209,1718187041903,-318.27744376,0.00019351,2]
[329220210,1718187041913,-245000.0,0.00019352,2]
[329220211,1718187041924,-10351.2619,0.00019352,2]
[329220212,1718187041935,-553.07,0.00019387,2]
[329220213,1718187041946,-500.0,0.00019387,2]
[329220214,1718187041957,-500.0,0.00019387,2]
[329220215,1718187041968,-500.0,0.00019387,2]
[329220216,1718187041978,-1611.69,0.00019387,2]
[329220217,1718187041989,-500.0,0.00019387,2]
[329220218,1718187041999,-632.28,0.00019387,2]
[329220219,1718187042012,-500.0,0.00019387,2]
[329220220,1718187042027,-868.93,0.00019387,2]
[329220221,1718187042038,-500.0,0.00019387,2]
[329220222,1718187042049,-500.0,0.00019387,2]
[329220223,1718187042060,-528.64,0.00019387,2]
[329220224,1718187042072,-883.1,0.00019387,2]
[329220225,1718187042083,-500.0,0.00019387,2]
[329220226,1718187042094,-500.0,0.00019387,2]
[329220227,1718187042105,-500.0,0.00019387,2]
[329220228,1718187042116,-500.0,0.00019387,2]
[329220229,1718187042127,-500.0,0.00019387,2]
[329220230,1718187042138,-385.93033991,0.00019387,2]
[329220231,1718187042149,-775.01,0.00019387,2]
[329220232,1718187042160,-500.0,0.00019387,2]
[329220233,1718187042172,-500.0,0.00019387,2]
[329220234,1718187042183,-500.0,0.00019387,2]
[329220235,1718187042193,-500.0,0.00019387,2]
[329220236,1718187042204,-500.0,0.00019387,2]
[329220237,1718187042216,-1482.55,0.00019387,2]
[329220239,1718187042228,-500.0,0.00019387,2]
[329220241,1718187042239,-588.15,0.00019387,2]
[329220243,1718187042250,-1084.31,0.00019387,2]
[329220245,1718187042263,-834.47,0.00019387,2]
[329220247,1718187042274,-837.88,0.00019387,2]
[329220249,1718187042286,-823.62,0.00019387,2]
[329220252,1718187042298,-573.1,0.00019387,2]
[329220255,1718187042310,-1128.63,0.00019387,2]
[329220258,1718187042323,-500.0,0.00019387,2]
[329220261,1718187042336,-674.47,0.00019387,2]
[329220264,1718187042347,-500.0,0.00019387,2]
[329220267,1718187042358,-621.82,0.00019387,2]
[329220271,1718187042370,-739.01,0.00019387,2]
[329220273,1718187042381,-845.15,0.00019387,2]
[329220275,1718187042392,-1541.47,0.00019387,2]
[329220277,1718187042404,-208.16267468,0.00019387,2]
[329220279,1718187042415,-500.0,0.00019387,2]
[329220281,1718187042427,-756.36,0.00019387,2]
[329220283,1718187042439,-500.0,0.00019387,2]
[329220285,1718187042450,-1566.19,0.00019387,2]
[329220287,1718187042461,-500.0,0.00019387,2]
[329220289,1718187042473,-609.08,0.00019387,2]
[329220291,1718187042483,-500.0,0.00019387,2]
[329220292,1718187042494,-1703.55,0.00019387,2]
[329220293,1718187042507,-2896.96,0.00019387,2]
[329220294,1718187042518,-849.0,0.00019387,2]
[329220295,1718187042528,-500.0,0.00019387,2]
[329220297,1718187042540,-500.0,0.00019387,2]
[329220299,1718187042551,-500.0,0.00019387,2]
[329220301,1718187042563,-500.0,0.00019387,2]
[329220303,1718187042574,-500.0,0.00019387,2]
[329220305,1718187042585,-500.0,0.00019387,2]
[329220307,1718187042596,-500.0,0.00019387,2]
[329220309,1718187042607,-500.0,0.00019387,2]
[329220311,1718187042618,-1066.46,0.00019387,2]
[329220313,1718187042629,-3736.27,0.00019387,2]
[329220316,1718187042641,-500.0,0.00019387,2]
[329220318,1718187042653,-500.0,0.00019387,2]
[329220320,1718187042663,-500.0,0.00019388,2]
[329220322,1718187042674,-500.0,0.00019388,2]
[329220324,1718187042684,-327.08,0.00019388,2]
[329220326,1718187042697,-500.0,0.00019388,2]
[329220328,1718187042709,-500.0,0.00019388,2]
[329220330,1718187042720,-210.27001024,0.00019388,2]
[329220332,1718187042731,-500.0,0.00019388,2]
[329220335,1718187042744,-500.0,0.00019388,2]
[329220338,1718187042756,-500.0,0.00019388,2]
[329220340,1718187042767,-150.0,0.00019388,2]
[329220343,1718187042778,-500.0,0.00019388,2]
[329220346,1718187042789,-500.0,0.00019388,2]
[329220348,1718187042800,-500.0,0.00019388,2]
[329220350,1718187042811,-1016.58,0.00019388,2]
[329220351,1718187042821,-554.0018818,0.00019388,2]
[329220353,1718187042832,-184.45587548,0.00019388,2]
[329220355,1718187042843,-500.0,0.00019388,2]
[329220357,1718187042853,-500.0,0.00019388,2]
[329220360,1718187042865,-500.0,0.00019388,2]
[329220361,1718187042876,-1387.73,0.00019388,2]
[329220363,1718187042887,-500.0,0.00019388,2]
[329220366,1718187042899,-383.18364873,0.00019388,2]
[329220368,1718187042913,-500.0,0.00019388,2]
[329220370,1718187042925,-500.0,0.00019388,2]
[329220372,1718187042937,-713.65,0.00019388,2]
[329220374,1718187042948,-500.0,0.00019388,2]
[329220376,1718187042960,-500.0,0.00019388,2]
[329220378,1718187042972,-500.0,0.00019388,2]
[329220380,1718187042984,-500.0,0.00019388,2]
[329220382,1718187042995,-500.0,0.00019388,2]
[329220384,1718187043007,-500.0,0.00019388,2]
[329220386,1718187043019,-500.0,0.00019388,2]
[329220388,1718187043030,-450.99142954,0.00019388,2]
[329220390,1718187043042,-500.0,0.00019388,2]
[329220392,1718187043056,-167.41302685,0.00019388,2]
[329220394,1718187043070,-500.0,0.00019388,2]
[329220424,1718187043340,-558.45511635,0.00019388,2]
[329220426,1718187043351,-500.0,0.00019388,2]
[329220428,1718187043363,-500.0,0.00019388,2]
[329220430,1718187043375,-500.0,0.00019388,2]
[329220432,1718187043386,-500.0,0.00019388,2]
[329220434,1718187043396,-500.0,0.00019388,2]
[329220436,1718187043406,-500.0,0.00019388,2]
[329220438,1718187043417,-496.15838618,0.00019388,2]
[329220440,1718187043427,-500.0,0.00019388,2]
[329220442,1718187043438,-500.0,0.00019388,2]
[329220444,1718187043448,-582.58,0.00019388,2]
[329220447,1718187043459,-500.0,0.00019388,2]
[329220450,1718187043469,-500.0,0.00019388,2]
[329220453,1718187043480,-500.0,0.00019388,2]
[329220456,1718187043492,-500.0,0.00019388,2]
[329220459,1718187043506,-619.44,0.00019388,2]
[329220462,1718187043517,-500.0,0.00019388,2]
[329220465,1718187043531,-500.0,0.00019388,2]
[329220467,1718187043542,-500.0,0.00019388,2]
[329220470,1718187043568,-500.0,0.00019388,2]
[329220475,1718187043596,-500.0,0.00019388,2]
[329220478,1718187043610,-500.0,0.00019388,2]
[329220480,1718187043625,-630.35,0.00019388,2]
[329220482,1718187043637,-1300.65,0.00019388,2]
[329220485,1718187043649,-651.51,0.00019388,2]
[329220488,1718187043662,-500.0,0.00019388,2]
[329220491,1718187043674,-500.0,0.00019388,2]
[329220494,1718187043686,-500.0,0.00019388,2]
[329220497,1718187043698,-616.95,0.00019388,2]
[329220500,1718187043712,-500.0,0.00019388,2]
[329220503,1718187043725,-500.0,0.00019388,2]
[329220505,1718187043737,-500.0,0.00019388,2]
[329220507,1718187043749,-500.0,0.00019388,2]
[329220510,1718187043768,-572.52,0.00019388,2]
[329220514,1718187043782,-500.0,0.00019388,2]
[329220518,1718187043797,-500.0,0.00019388,2]
[329220521,1718187043810,-500.0,0.00019388,2]
[329220524,1718187043823,-1072.58,0.00019388,2]
[329220527,1718187043843,-500.0,0.00019388,2]
[329220529,1718187043855,-500.0,0.00019388,2]
[329220532,1718187043869,-528.54,0.00019388,2]
[329220535,1718187043882,-1923.73,0.00019388,2]
[329220538,1718187043897,-500.0,0.00019388,2]
[329220541,1718187043916,-500.0,0.00019388,2]
[329220544,1718187043929,-1548.5,0.00019388,2]
[329220546,1718187043941,-500.0,0.00019388,2]
[329220548,1718187043955,-1323.71,0.00019388,2]
[329220550,1718187043972,-500.0,0.00019388,2]
[329220552,1718187043987,-676.57,0.00019388,2]
[329220554,1718187044001,-1539.52,0.00019388,2]
[329220557,1718187044018,-500.0,0.00019388,2]
[329220559,1718187044031,-500.0,0.00019388,2]
[329220561,1718187044043,-500.0,0.00019388,2]
[329220563,1718187044056,-623.51,0.00019388,2]
[329220565,1718187044070,-500.0,0.00019388,2]
[329220567,1718187044085,-500.0,0.00019388,2]
[329220569,1718187044097,-3218.26,0.00019388,2]
[329220571,1718187044110,-970.17,0.00019388,2]
[329220573,1718187044121,-500.0,0.00019388,2]
[329220575,1718187044135,-500.0,0.00019388,2]
[329220577,1718187044149,-500.0,0.00019388,2]
[329220580,1718187044162,-873.42,0.00019388,2]
[329220582,1718187044173,-506.2,0.00019388,2]
[329220584,1718187044184,-540.75,0.00019388,2]
[329220586,1718187044195,-500.0,0.00019388,2]
[329220588,1718187044206,-500.0,0.00019388,2]
[329220590,1718187044217,-2568.5,0.00019388,2]
[329220592,1718187044229,-500.0,0.00019388,2]
[329220594,1718187044240,-523.32,0.00019388,2]
[329220596,1718187044252,-1565.07,0.00019388,2]
[329220598,1718187044268,-500.0,0.00019388,2]
[329220600,1718187044279,-1272.8,0.00019388,2]
[329220602,1718187044289,-500.0,0.00019388,2]
[329220604,1718187044300,-500.0,0.00019388,2]
[329220606,1718187044311,-1493.24,0.00019388,2]
[329220608,1718187044323,-8301.05,0.00019444,2]
[329220610,1718187044335,-500.0,0.00019452,2]
[329220612,1718187044347,-500.0,0.00019452,2]
[329220614,1718187044358,-250.0,0.00019452,2]
[329220616,1718187044370,-500.0,0.00019452,2]
[329220618,1718187044382,-1123.87,0.00019452,2]
[329220620,1718187044393,-500.0,0.00019452,2]
[329220622,1718187044404,-193.86499275,0.00019452,2]
[329220624,1718187044415,-500.0,0.00019452,2]
[329220626,1718187044426,-500.0,0.00019452,2]
[329220629,1718187044437,-500.0,0.00019452,2]
[329220631,1718187044448,-500.0,0.00019452,2]
[329220633,1718187044459,-500.0,0.00019452,2]
[329220635,1718187044470,-615.69,0.00019452,2]
[329220637,1718187044481,-500.0,0.00019452,2]
[329220639,1718187044493,-500.0,0.00019452,2]
[329220641,1718187044503,-500.0,0.00019452,2]
[329220643,1718187044517,-500.0,0.00019452,2]
[329220645,1718187044528,-500.0,0.00019452,2]
[329220647,1718187044538,-564.05,0.00019452,2]
[329220649,1718187044548,-500.0,0.00019452,2]
[329220651,1718187044585,-500.0,0.00019452,2]
[329220654,1718187044598,-500.0,0.00019452,2]
[329220655,1718187044609,-500.0,0.00019452,2]
[329220658,1718187044620,-500.0,0.00019452,2]
[329220660,1718187044631,-500.0,0.00019452,2]
[329220661,1718187044642,-500.0,0.00019452,2]
[329220664,1718187044653,-500.0,0.00019452,2]
[329220666,1718187044665,-500.0,0.00019452,2]
[329220668,1718187044676,-500.0,0.00019452,2]
[329220670,1718187044687,-500.0,0.00019452,2]
[329220672,1718187044697,-150.0,0.00019455,2]
[329220674,1718187044707,-553.07,0.00019524,2]
[329220676,1718187044719,-500.0,0.00019524,2]
[329220678,1718187044730,-500.0,0.00019524,2]
[329220680,1718187044741,-500.0,0.00019524,2]
[329220682,1718187044752,-1611.69,0.00019524,2]
[329220684,1718187044765,-500.0,0.00019524,2]
[329220686,1718187044777,-632.28,0.00019524,2]
[329220688,1718187044789,-389.72,0.00019524,2]
[329220690,1718187044800,-868.93,0.00019524,2]
[329220692,1718187044812,-512.45008324,0.00019524,2]
[329220694,1718187044824,-500.0,0.00019524,2]
[329220696,1718187044834,-528.64,0.00019524,2]
[329220698,1718187044845,-883.1,0.00019524,2]
[329220700,1718187044860,-500.0,0.00019524,2]
[329220702,1718187044874,-500.0,0.00019524,2]
[329220704,1718187044886,-500.0,0.00019524,2]
[329220706,1718187044898,-500.0,0.00019524,2]
[329220708,1718187044909,-500.0,0.00019524,2]
[329220710,1718187044921,-775.01,0.00019524,2]
[329220712,1718187044933,-221.30416908,0.00019524,2]
[329220714,1718187044948,-500.0,0.00019524,2]
[329220716,1718187044960,-500.0,0.00019524,2]
[329220718,1718187044971,-500.0,0.00019524,2]
[329220721,1718187044983,-500.0,0.00019524,2]
[329220723,1718187044994,-1482.55,0.00019524,2]
[329220725,1718187045008,-500.0,0.00019524,2]
[329220727,1718187045020,-588.15,0.00019524,2]
[329220729,1718187045031,-834.47,0.00019524,2]
[329220731,1718187045043,-1084.31,0.00019524,2]
[329220733,1718187045053,-837.88,0.00019524,2]
[329220735,1718187045064,-823.62,0.00019524,2]
[329220737,1718187045075,-573.1,0.00019524,2]
[329220739,1718187045088,-1128.63,0.00019524,2]
[329220741,1718187045104,-500.0,0.00019524,2]
[329220743,1718187045116,-674.47,0.00019524,2]
[329220746,1718187045129,-500.0,0.00019524,2]
[329220748,1718187045141,-621.82,0.00019524,2]
[329220750,1718187045152,-739.01,0.00019524,2]
[329220752,1718187045165,-845.15,0.00019524,2]
[329220754,1718187045178,-1541.47,0.00019524,2]
[329220756,1718187045191,-500.0,0.00019524,2]
[329220758,1718187045207,-756.36,0.00019524,2]
[329220760,1718187045218,-500.0,0.00019524,2]
[329220763,1718187045230,-1566.19,0.00019524,2]
[329220765,1718187045242,-500.0,0.00019524,2]
[329220767,1718187045254,-609.08,0.00019524,2]
[329220769,1718187045268,-500.0,0.00019524,2]
[329220771,1718187045280,-1703.55,0.00019524,2]
[329220773,1718187045291,-2896.96,0.00019524,2]
[329220775,1718187045302,-849.0,0.00019524,2]
[329220777,1718187045313,-500.0,0.00019524,2]
[329220779,1718187045324,-500.0,0.00019524,2]
[329220781,1718187045340,-500.0,0.00019524,2]
[329220783,1718187045352,-500.0,0.00019524,2]
[329220785,1718187045365,-500.0,0.00019524,2]
[329220787,1718187045377,-500.0,0.00019524,2]
[329220789,1718187045388,-500.0,0.00019524,2]
[329220791,1718187045400,-456.58608681,0.00019524,2]
[329220793,1718187045411,-1066.46,0.00019524,2]
[329220795,1718187045422,-3736.27,0.00019524,2]
[329220796,1718187045433,-500.0,0.00019524,2]
[329220797,1718187045443,-500.0,0.00019524,2]
[329220798,1718187045453,-500.0,0.00019525,2]
[329220799,1718187045465,-297.80569209,0.00019525,2]
[329220801,1718187045476,-500.0,0.00019525,2]
[329220802,1718187045487,-500.0,0.00019525,2]
[329220803,1718187045498,-500.0,0.00019525,2]
[329220804,1718187045510,-317.28284682,0.00019525,2]
[329220811,1718187045655,-500.0,0.00019387,2]
[329220814,1718187045667,-182.71715318,0.00019525,2]
[329220816,1718187045677,-381.62284682,0.00019525,2]
[329220818,1718187045691,-118.37715318,0.00019525,2]
[329220820,1718187045703,-150.0,0.00019525,2]
[329220822,1718187045714,-500.0,0.00019525,2]
[329220824,1718187045725,-500.0,0.00019525,2]
[329220826,1718187045736,-500.0,0.00019525,2]
[329220828,1718187045746,-1016.58,0.00019525,2]
[329220830,1718187045760,-500.0,0.00019525,2]
[329220832,1718187045771,-639.86876561,0.00019525,2]
[329220834,1718187045782,-500.0,0.00019525,2]
[329220836,1718187045794,-1387.73,0.00019525,2]
[329220838,1718187045807,-607.15737663,0.00019525,2]
[329220840,1718187045818,-500.0,0.00019525,2]
[329220842,1718187045831,-251.98390458,0.00019525,2]
[329220844,1718187045845,-248.01609542,0.00019525,2]
[329220846,1718187045856,-221.00796724,0.00019525,2]
[329220849,1718187045870,-492.64203276,0.00019525,2]
[329220851,1718187045881,-539.15510693,0.00019525,2]
[329220853,1718187045892,-500.0,0.00019525,2]
[329220855,1718187045904,-195.10746477,0.00019525,2]
[329220857,1718187045918,-304.89253523,0.00019525,2]
[329220859,1718187045930,-500.0,0.00019525,2]
[329220861,1718187045942,-500.0,0.00019525,2]
[329220863,1718187045953,-500.0,0.00019525,2]
[329220865,1718187045964,-301.74118179,0.00019525,2]
[329220867,1718187045976,-500.0,0.00019525,2]
[329220869,1718187045987,-500.0,0.00019525,2]
[329220871,1718187046002,-500.0,0.00019525,2]
[329220873,1718187046016,-500.0,0.00019525,2]
[329220875,1718187046029,-500.0,0.00019525,2]
[329220878,1718187046041,-500.0,0.00019525,2]
[329220880,1718187046053,-74.10711038,0.00019525,2]
[329220882,1718187046070,-425.89288962,0.00019525,2]
[329220884,1718187046081,-445.04222182,0.00019525,2]
[329220886,1718187046092,-500.0,0.00019525,2]
[329220888,1718187046103,-582.58,0.00019525,2]
[329220890,1718187046115,-500.0,0.00019525,2]
[329220892,1718187046127,-500.0,0.00019525,2]
[329220894,1718187046140,-500.0,0.00019525,2]
[329220896,1718187046152,-500.0,0.00019525,2]
[329220898,1718187046163,-619.44,0.00019525,2]
[329220900,1718187046175,-500.0,0.00019525,2]
[329220902,1718187046186,-482.70034627,0.00019525,2]
[329220906,1718187046217,-500.0,0.00019387,2]
[329220908,1718187046229,-17.29965373,0.00019525,2]
[329220910,1718187046243,-500.0,0.00019525,2]
[329220912,1718187046253,-500.0,0.00019525,2]
[329220915,1718187046267,-500.0,0.00019525,2]
[329220917,1718187046279,-500.0,0.00019525,2]
[329220918,1718187046289,-1300.65,0.00019525,2]
[329220921,1718187046301,-651.51,0.00019525,2]
[329220923,1718187046311,-500.0,0.00019525,2]
[329220925,1718187046322,-500.0,0.00019525,2]
[329220928,1718187046334,-252.80059991,0.00019525,2]
[329220930,1718187046344,-616.95,0.00019525,2]
[329220932,1718187046355,-500.0,0.00019525,2]
[329220934,1718187046367,-245.16955261,0.00019525,2]
[329220936,1718187046378,-500.0,0.00019525,2]
[329220938,1718187046389,-500.0,0.00019525,2]
[329220952,1718187046481,-479.91769815,0.00019525,2]
[329220955,1718187046494,-92.60230185,0.00019525,2]
[329220959,1718187046508,-500.0,0.00019525,2]
[329220961,1718187046519,-500.0,0.00019525,2]
[329220964,1718187046529,-500.0,0.00019525,2]
[329220967,1718187046540,-1072.58,0.00019525,2]
[329220969,1718187046551,-500.0,0.00019525,2]
[329220973,1718187046592,-500.0,0.00019525,2]
[329220975,1718187046607,-528.54,0.00019525,2]
[329220978,1718187046618,-1923.73,0.00019525,2]
[329220981,1718187046629,-500.0,0.00019525,2]
[329220984,1718187046639,-324.58731328,0.00019525,2]
[329220986,1718187046649,-1548.5,0.00019525,2]
[329220989,1718187046661,-500.0,0.00019525,2]
[329220991,1718187046672,-1323.71,0.00019525,2]
[329220994,1718187046682,-500.0,0.00019525,2]
[329220997,1718187046692,-676.57,0.00019525,2]
[329220999,1718187046703,-1539.52,0.00019525,2]
[329221002,1718187046713,-500.0,0.00019525,2]
[329221005,1718187046724,-500.0,0.00019525,2]
[329221007,1718187046734,-500.0,0.00019525,2]
[329221010,1718187046745,-623.51,0.00019525,2]
[329221013,1718187046758,-500.0,0.00019525,2]
[329221016,1718187046768,-500.0,0.00019525,2]
[329221018,1718187046778,-1775.6052609,0.00019525,2]
[329221021,1718187046792,-1442.6547391,0.00019525,2]
[329221024,1718187046802,-307.3452609,0.00019525,2]
[329221028,1718187046821,-662.8247391,0.00019525,2]
[329221031,1718187046832,-500.0,0.00019525,2]
[329221034,1718187046843,-500.0,0.00019525,2]
[329221037,1718187046854,-500.0,0.00019525,2]
[329221039,1718187046864,-873.42,0.00019525,2]
[329221042,1718187046875,-506.2,0.00019525,2]
[329221045,1718187046885,-540.75,0.00019525,2]
[329221047,1718187046896,-500.0,0.00019525,2]
[329221050,1718187046907,-500.0,0.00019525,2]
[329221053,1718187046917,-2568.5,0.00019525,2]
[329221056,1718187046927,-500.0,0.00019525,2]
[329221059,1718187046937,-523.32,0.00019525,2]
[329221061,1718187046947,-1565.07,0.00019525,2]
[329221064,1718187046958,-439.77131074,0.00019525,2]
[329221066,1718187046968,-1272.8,0.00019525,2]
[329221068,1718187046979,-500.0,0.00019525,2]
[329221070,1718187046989,-500.0,0.00019525,2]
[329221072,1718187047000,-1493.24,0.00019525,2]
[329221074,1718187047013,-200.0,0.00019535,2]
[329221076,1718187047023,-687.25630943,0.00019587,2]
[329221078,1718187047033,-282.95218659,0.00019588,2]
[329221080,1718187047043,-941.04898987,0.00019588,2]
[329221082,1718187047053,-500.0,0.00019589,2]
[329221084,1718187047064,-500.0,0.00019589,2]
[329221086,1718187047075,-250.0,0.00019589,2]
[329221088,1718187047085,-500.0,0.00019589,2]
[329221090,1718187047096,-1123.87,0.00019589,2]
[329221092,1718187047107,-552.08187305,0.00019589,2]
[329221094,1718187047118,-280.14320952,0.00019589,2]
[329221096,1718187047129,-500.0,0.00019589,2]
[329221098,1718187047140,-500.0,0.00019589,2]
[329221100,1718187047152,-500.0,0.00019589,2]
[329221102,1718187047164,-500.0,0.00019589,2]
[329221104,1718187047174,-615.69,0.00019589,2]
[329221106,1718187047185,-500.0,0.00019589,2]
[329221108,1718187047196,-500.0,0.00019589,2]
[329221110,1718187047207,-500.0,0.00019589,2]
[329221112,1718187047217,-500.0,0.00019589,2]
[329221114,1718187047228,-500.0,0.00019589,2]
[329221116,1718187047238,-564.05,0.00019589,2]
[329221118,1718187047249,-500.0,0.00019589,2]
[329221120,1718187047262,-500.0,0.00019589,2]
[329221122,1718187047273,-500.0,0.00019589,2]
[329221124,1718187047285,-500.0,0.00019589,2]
[329221126,1718187047296,-500.0,0.00019589,2]
[329221128,1718187047306,-500.0,0.00019589,2]
[329221130,1718187047316,-500.0,0.00019589,2]
[329221132,1718187047327,-500.0,0.00019589,2]
[329221134,1718187047339,-500.0,0.00019589,2]
[329221136,1718187047350,-500.0,0.00019589,2]
[329221138,1718187047360,-500.0,0.00019589,2]
[329221140,1718187047371,-373.25855775,0.00019597,2]
[329221142,1718187047382,-411.86575816,0.00019598,2]
[329221144,1718187047394,-625.28915843,0.00019598,2]
[329221146,1718187047404,-1510.12584397,0.00019598,2]
[329221148,1718187047415,-234.92335311,0.00019598,2]
[329221150,1718187047426,-2245.81740321,0.00019598,2]
[329221152,1718187047437,-1143.70012184,0.00019599,2]
[329221154,1718187047450,-2542.56687816,0.00019599,2]
[329221156,1718187047461,-698.38521222,0.00019626,2]
[329221159,1718187047479,-1034.268095,0.00019626,2]
[329221161,1718187047492,-467.64829561,0.00019626,2]
[329221164,1718187047514,-500.0,0.00019524,2]
[329221166,1718187047525,-2801.86457777,0.00019626,2]
[329221168,1718187047540,-5971.30641391,0.00019627,2]
[329221170,1718187047565,-4309.69358609,0.00019627,2]
[329221172,1718187047586,-553.07,0.00019661,2]
[329221174,1718187047596,-500.0,0.00019661,2]
[329221176,1718187047607,-500.0,0.00019661,2]
[329221178,1718187047621,-500.0,0.00019661,2]
[329221180,1718187047633,-1611.69,0.00019661,2]